bitfinex-derivatives/quotes_SOLF0:USTF0_20240815
["timestamp","ask_amount","ask_price","bid_price","bid_amount"]
[1723740527921,0.04544455,145.83,145.82,9.57312532]
[1723740528130,0.04544455,145.83,145.81,3.4286]
[1723740528326,0.04544455,145.83,145.82,9.57311757]
[1723740528535,0.04544455,145.83,145.8,0.05191055]
[1723740528832,3.4286,145.82,145.8,0.05191055]
[1723740529025,3.4286,145.82,145.81,9.57439963]
[1723740530027,0.04544455,145.83,145.81,9.57439963]
[1723740530235,0.04544455,145.83,145.8,0.05191055]
[1723740530428,0.04544455,145.83,145.81,9.57428377]
[1723740530629,0.04544455,145.83,145.8,0.05191055]
[1723740531032,3.4286,145.81,145.8,0.05191055]
[1723740531227,3.4286,145.81,145.8,9.62770604]
[1723740534233,3.4286,145.81,145.8,9.62834286]
[1723740534933,3.4286,145.81,145.8,0.05191055]
[1723740535323,23.1686,145.81,145.8,0.05191055]
[1723740536434,24.9,145.81,145.72,8.73418275]
[1723740536729,19.74,145.78,145.73,9.58273726]
[1723740536932,3.4301,145.75,145.74,9.58273726]
[1723740537923,3.4302,145.74,145.73,0.05276631]
[1723740538123,3.4302,145.74,145.73,9.63577691]
[1723740538325,3.4302,145.74,145.73,0.05276631]
[1723740538627,24.9,145.74,145.63,26.5582748]
[1723740538832,19.74,145.7,145.64,8.62282406]
[1723740539033,19.74,145.7,145.65,8.62282406]
[1723740539242,19.74,145.7,145.66,8.62282406]
[1723740539434,19.74,145.7,145.67,8.62282406]
[1723740539628,19.74,145.7,145.63,2.4855]
[1723740539629,19.74,145.7,145.68,8.62282406]
[1723740539824,3.4312,145.7,145.69,8.62282406]
[1723740540226,3.47580506,145.7,145.69,8.62282406]
[1723740540937,0.04460506,145.7,145.69,8.62282406]
[1723740541438,3.47580506,145.7,145.69,8.62282406]
[1723740543642,3.4316,145.68,145.67,0.04978506]
[1723740543834,3.4316,145.68,145.67,8.67423241]
[1723740544229,3.4316,145.68,145.67,0.04978506]
[1723740544533,3.4316,145.68,145.67,8.67423098]
[1723740545339,3.4316,145.68,145.67,0.04978506]
[1723740548331,0.04460506,145.7,145.67,8.67365189]
[1723740548530,0.04460506,145.7,145.67,0.04978506]
[1723740549746,3.4315,145.69,145.67,0.04978506]
[1723740550243,3.4316,145.68,145.67,0.04978506]
[1723740552746,24.7,145.69,145.6,1.3512]
[1723740552934,24.7,145.66,145.6,1.3512]
[1723740553139,33.37584434,145.66,145.6,1.3512]
[1723740553440,29.86,145.66,145.6,1.3512]
[1723740553841,0.05241393,145.64,145.62,0.04343661]
[1723740554249,3.4328,145.63,145.62,0.04343661]
[1723740555352,24.75241393,145.64,145.55,1.2383]
[1723740555353,3.4339,145.59,145.55,1.2383]
[1723740555845,3.4341,145.58,145.55,1.2383]
[1723740556355,3.4339,145.59,145.55,4.6729]
[1723740556560,0.04460107,145.58,145.55,4.72368911]
[1723740557253,3.4343,145.57,145.55,0.05078911]
[1723740557456,0.04460107,145.58,145.55,0.05078911]
[1723740557657,3.4344,145.57,145.55,0.05078911]
[1723740558358,0.04460107,145.58,145.55,0.05078911]
[1723740558845,0.04460107,145.58,145.55,3.48528911]
[1723740559759,0.04460107,145.58,145.55,0.05078911]
[1723740560450,0.04460107,145.58,145.56,3.4345]
[1723740560657,0.04460107,145.58,145.55,0.05078911]
[1723740561959,0.04460107,145.58,145.56,3.4343]
[1723740563961,0.04460107,145.58,145.55,0.05078911]
[1723740564559,3.4344,145.57,145.55,0.05078911]
[1723740564760,0.04460107,145.58,145.55,0.05078911]
[1723740564957,3.47870107,145.58,145.55,3.48538911]
[1723740565152,24.7,145.61,145.55,0.05078911]
[1723740565662,24.7,145.61,145.53,1.2301]
[1723740566158,3.4342,145.58,145.55,3.4346]
[1723740566361,0.04732554,145.58,145.56,0.05081157]
[1723740566754,3.48132554,145.58,145.56,3.48531157]
[1723740567159,0.04732554,145.58,145.56,3.48531157]
[1723740568356,0.04732554,145.58,145.57,3.4342]
[1723740568961,0.04732554,145.58,145.56,3.48521157]
[1723740569455,3.4342,145.57,145.56,0.05081157]
[1723740569759,19.83732554,145.58,145.56,0.05081157]
[1723740570256,23.25550683,145.58,145.56,0.05081157]
[1723740570661,3.4342,145.57,145.56,0.05081157]
[1723740572359,0.04732554,145.58,145.56,0.05081157]
[1723740572859,19.79,145.62,145.57,3.4341]
[1723740573063,84.79086276,145.64,145.57,1.2923]
[1723740573360,84.79086276,145.64,145.58,3.38694014]
[1723740573552,68.43366276,145.64,145.58,3.38694014]
[1723740573752,68.43366276,145.64,145.59,1.2368]
[1723740573753,65.00086276,145.64,145.59,1.2368]
[1723740573964,3.4334,145.61,145.59,1.2368]
[1723740574258,3.4334,145.61,145.6,0.04434478]
[1723740576367,3.48202674,145.62,145.6,0.04434478]
[1723740576569,0.04882674,145.62,145.6,0.04434478]
[1723740576771,3.4333,145.61,145.6,0.04434478]
[1723740576967,0.04882674,145.62,145.6,0.04434478]
[1723740577362,0.04882674,145.62,145.61,3.4333]
[1723740577672,3.4328,145.64,145.61,3.4333]
[1723740577863,24.93,145.66,145.6,0.04434478]
[1723740577864,29.86,145.66,145.6,0.04434478]
[1723740578064,29.86,145.66,145.6,3.47774478]
[1723740578261,29.86,145.66,145.6,0.04434478]
[1723740578767,3.4331,145.62,145.6,0.04434478]
[1723740579162,3.4329,145.63,145.6,3.47764478]
[1723740579573,0.04631266,145.64,145.6,0.04434478]
[1723740580371,24.72,145.63,145.6,0.04434478]
[1723740580862,3.4332,145.62,145.6,0.04434478]
[1723740583174,24.72,145.63,145.6,0.04434478]
[1723740583478,0.04631266,145.64,145.6,0.04434478]
[1723740583977,0.04631266,145.64,145.61,3.4332]
[1723740585675,0.04631266,145.64,145.6,0.04434478]
[1723740586276,3.433,145.63,145.6,0.04434478]
[1723740587074,3.433,145.63,145.6,3.47784478]
[1723740587776,0.04631266,145.64,145.6,0.04434478]
[1723740588083,24.72,145.61,145.6,0.04434478]
[1723740589285,28.1533,145.61,145.6,0.04434478]
[1723740591584,3.4331,145.62,145.6,0.04434478]
[1723740591784,24.72,145.63,145.6,0.04434478]
[1723740592185,3.4331,145.62,145.6,0.04434478]
[1723740592377,24.72,145.63,145.6,0.04434478]
[1723740593286,0.04631266,145.64,145.6,0.04434478]
[1723740593780,3.433,145.63,145.6,3.47774478]
[1723740595485,3.47901266,145.64,145.61,3.4333]
[1723740595686,0.04631266,145.64,145.61,3.4333]
[1723740596086,0.04631266,145.64,145.6,0.04434478]
[1723740596283,3.47901266,145.64,145.61,3.4331]
[1723740596982,3.47901266,145.64,145.6,3.47774478]
[1723740597685,3.47901266,145.64,145.61,3.4333]
[1723740598483,0.04631266,145.64,145.62,3.433]
[1723740599088,0.04631266,145.64,145.6,2.60974478]
[1723740599893,0.04631266,145.64,145.63,3.4328]
[1723740600383,8.4917,145.68,145.65,3.4322]
[1723740600583,8.41554957,145.75,145.61,19.78]
[1723740600781,19.78,145.73,145.64,5.06]
[1723740600981,3.4308,145.72,145.64,5.06]
[1723740601385,3.4304,145.74,145.71,3.4308]
[1723740601585,19.78,145.75,145.71,3.4308]
[1723740601895,3.4303,145.74,145.71,3.4308]
[1723740602092,19.78,145.75,145.67,0.04883427]
[1723740602288,19.78,145.73,145.66,2.6207]
[1723740602491,3.4308,145.72,145.66,2.6207]
[1723740602690,19.78,145.73,145.7,0.04600728]
[1723740602886,23.2109,145.71,145.7,0.04600728]
[1723740603488,19.78,145.71,145.7,0.04600728]
[1723740603794,19.82740007,145.73,145.7,0.04600728]
[1723740604392,23.2105,145.73,145.66,6.07563623]
[1723740604594,23.25920666,145.73,145.7,0.04434342]
[1723740604795,3.4308,145.72,145.7,0.04434342]
[1723740605094,19.78,145.71,145.7,0.04434342]
[1723740605792,0.04870666,145.73,145.7,0.04434342]
[1723740605793,19.82870666,145.73,145.7,0.04434342]
[1723740606800,19.82870666,145.73,145.7,3.47544342]
[1723740606988,23.25920666,145.73,145.7,3.47544342]
[1723740607391,0.04870666,145.73,145.71,3.4309]
[1723740610094,0.04870666,145.73,145.72,3.4307]
[1723740611002,3.4298,145.76,145.73,3.4304]
[1723740611695,19.78,145.77,145.7,5.06]
[1723740611898,19.78,145.77,145.71,8.61648188]
[1723740612201,0.04626809,145.75,145.73,0.04486993]
[1723740612401,0.04626809,145.75,145.74,3.4302]
[1723740612895,0.04626809,145.75,145.73,0.04486993]
[1723740612896,3.47646809,145.75,145.73,0.04486993]
[1723740613100,0.04626809,145.75,145.73,0.04486993]
[1723740614303,0.04626809,145.75,145.74,3.4302]
[1723740614493,19.78,145.8,145.73,1.31376993]
[1723740614695,3.4292,145.79,145.76,3.4296]
[1723740615095,3.429,145.8,145.77,3.4294]
[1723740615298,5.06,145.83,145.74,19.78]
[1723740615502,19.78,145.84,145.75,13.6685317]
[1723740615690,3.4287,145.81,145.78,3.4291]
[1723740615895,0.04541905,145.8,145.78,3.4291]
[1723740616096,0.04541905,145.8,145.77,0.04510925]
[1723740616795,0.04541905,145.8,145.79,3.4291]
[1723740619393,19.78,145.86,145.81,3.4285]
[1723740619695,3.428,145.84,145.78,1.3536]
[1723740619903,3.428,145.84,145.81,3.4284]
[1723740620709,3.47215924,145.84,145.81,3.47375389]
[1723740621199,3.47215924,145.84,145.82,3.4283]
[1723740621200,0.04415924,145.84,145.82,3.4283]
[1723740621801,0.04415924,145.84,145.83,3.4281]
[1723740622001,0.04415924,145.84,145.81,0.04535389]
[1723740622199,0.04415924,145.84,145.82,3.4282]
[1723740622399,0.04415924,145.84,145.81,0.04535389]
[1723740622810,3.47215924,145.84,145.81,3.47375389]
[1723740623105,0.04415924,145.84,145.81,0.04535389]
[1723740624104,3.47225924,145.84,145.81,0.04535389]
[1723740624605,0.04415924,145.84,145.82,3.4282]
[1723740624813,0.04415924,145.84,145.81,0.04535389]
[1723740625000,0.04415924,145.84,145.83,3.4281]
[1723740625903,71.93935916,145.88,145.82,8.44237919]
[1723740626102,68.51235916,145.88,145.82,8.44237919]
[1723740626503,68.51235916,145.88,145.85,3.4276]
[1723740626806,19.78,145.91,145.82,8.44237919]
[1723740627109,0.05087808,145.88,145.85,0.04577471]
[1723740627409,3.4274,145.86,145.85,0.04577471]
[1723740632811,23.2074,145.86,145.85,0.04577471]
[1723740638316,3.4274,145.86,145.85,0.04577471]
[1723740638615,0.05087808,145.88,145.85,0.04577471]
[1723740639714,3.4273,145.87,145.85,0.04577471]
[1723740640116,0.05087808,145.88,145.85,0.04577471]
[1723740640522,3.4274,145.86,145.85,0.04577471]
[1723740641814,23.2074,145.86,145.85,0.04577471]
[1723740643121,19.78,145.86,145.77,4.96]
[1723740643315,19.78,145.81,145.66,6.8641]
[1723740643517,19.78,145.81,145.73,3.4304]
[1723740643822,19.78,145.79,145.7,24.74]
[1723740644015,29.04779858,145.86,145.7,4.96]
[1723740644016,19.78,145.78,145.7,4.96]
[1723740644216,19.78,145.75,145.67,2.5227]
[1723740644418,19.8318166,145.75,145.73,0.05229006]
[1723740644615,23.262819,145.75,145.73,0.05077193]
[1723740644818,3.4302,145.74,145.73,0.05077193]
[1723740648423,3.4820166,145.75,145.73,0.05077193]
[1723740648929,0.0518166,145.75,145.73,0.05077193]
[1723740649714,0.0518166,145.75,145.73,3.48107193]
[1723740651317,0.0518166,145.75,145.73,0.05077193]
[1723740651523,3.4302,145.74,145.73,0.05077193]
[1723740651723,0.0518166,145.75,145.73,0.05077193]
[1723740651924,3.4820166,145.75,145.73,0.05077193]
[1723740652117,0.0518166,145.75,145.73,0.05077193]
[1723740652823,3.4302,145.74,145.73,0.05077193]
[1723740657024,3.4302,145.74,145.67,1.2259]
[1723740657227,3.4315,145.69,145.67,1.2259]
[1723740657525,19.78,145.73,145.67,1.2259]
[1723740657724,3.4313,145.7,145.67,1.2259]
[1723740658124,19.78,145.73,145.67,1.2259]
[1723740658426,0.05154921,145.7,145.67,1.27796697]
[1723740658728,3.48284921,145.7,145.67,1.27796697]
[1723740659324,3.4315,145.69,145.67,1.27796697]
[1723740659828,3.48284921,145.7,145.67,4.70976697]
[1723740660021,0.05154921,145.7,145.67,1.27796697]
[1723740660723,0.05154921,145.7,145.68,1.3203]
[1723740661427,3.4306,145.73,145.68,21.1003]
[1723740661924,19.78,145.78,145.7,19.78]
[1723740662125,19.78,145.8,145.72,19.78]
[1723740662328,19.78,145.8,145.72,23.21859343]
[1723740662525,19.78,145.8,145.74,3.4301]
[1723740662526,3.4296,145.77,145.74,3.4301]
[1723740662724,19.78,145.8,145.72,23.21859343]
[1723740662926,0.04579294,145.77,145.75,3.48073526]
[1723740665032,0.04579294,145.77,145.76,3.4298]
[1723740665826,6.8539,145.88,145.76,3.4298]
[1723740665827,19.78,145.86,145.8,3.4288]
[1723740666031,19.78,145.86,145.76,19.78]
[1723740666032,3.428,145.84,145.76,19.78]
[1723740666528,19.78,145.86,145.78,19.78]
[1723740666733,23.2075,145.86,145.78,19.78]
[1723740666932,19.78,145.86,145.81,3.4284]
[1723740667329,0.04438619,145.83,145.81,0.04779103]
[1723740667724,3.4283,145.82,145.81,0.04779103]
[1723740668034,0.04438619,145.83,145.81,0.04779103]
[1723740668230,3.47258619,145.83,145.81,0.04779103]
[1723740668828,0.04438619,145.83,145.81,0.04779103]
[1723740670025,0.04438619,145.83,145.81,3.47629103]
[1723740670343,0.04438619,145.83,145.81,0.04779103]
[1723740671338,0.04438619,145.83,145.82,3.4283]
[1723740672033,19.78,145.88,145.84,3.4277]
[1723740672235,19.78,145.9,145.82,5.02]
[1723740672627,19.78,145.9,145.85,3.4275]
[1723740672628,3.4268,145.89,145.85,3.4275]
[1723740673237,23.2066,145.9,145.82,8.41608084]
[1723740673537,0.04496445,145.88,145.86,0.05254199]
[1723740674036,0.04496445,145.88,145.86,3.47994199]
[1723740674231,0.04496445,145.88,145.86,0.05254199]
[1723740674833,0.04496445,145.88,145.8,2.5087]
[1723740674834,19.82496445,145.88,145.8,2.5087]
[1723740675036,19.78,145.85,145.8,2.5087]
[1723740675238,3.4281,145.83,145.8,5.9375]
[1723740675536,19.78,145.85,145.8,5.9375]
[1723740675738,3.428,145.84,145.8,5.9375]
[1723740675936,19.78,145.83,145.78,1.2543]
[1723740676327,19.78,145.83,145.81,0.04703099]
[1723740676328,0.05230365,145.83,145.81,0.04703099]
[1723740677935,19.83230365,145.83,145.81,0.04703099]
[1723740678129,3.4283,145.82,145.81,0.04703099]
[1723740678728,0.05230365,145.83,145.81,0.04703099]
[1723740679135,0.05230365,145.83,145.81,3.47543099]
[1723740679736,0.05230365,145.83,145.81,0.04703099]
[1723740681040,3.48040365,145.83,145.81,0.04703099]
[1723740681544,0.05230365,145.83,145.81,3.47563099]
[1723740681733,0.05230365,145.83,145.81,0.04703099]
[1723740682133,3.48040365,145.83,145.81,0.04703099]
[1723740682744,3.4283,145.82,145.81,0.04703099]
[1723740683743,23.2083,145.82,145.81,0.04703099]
[1723740689248,23.2083,145.82,145.75,6.0028]
[1723740689249,3.4294,145.78,145.75,1.2285]
[1723740689753,3.4294,145.78,145.75,4.6583]
[1723740690149,3.4292,145.79,145.75,4.6583]
[1723740690452,19.78,145.8,145.73,4.98]
[1723740690656,3.4297,145.77,145.73,4.98]
[1723740690949,19.82559328,145.78,145.75,0.04385875]
[1723740691153,23.2098,145.76,145.75,0.04385875]
[1723740691340,19.78,145.76,145.73,4.98]
[1723740691544,19.78,145.76,145.75,0.0499687]
[1723740691746,23.2098,145.76,145.75,0.0499687]
[1723740691954,19.78,145.76,145.7,2.6237]
[1723740692153,19.78,145.76,145.74,0.05133483]
[1723740693248,3.43,145.75,145.74,0.05133483]
[1723740693650,3.43,145.75,145.64,1.249]
[1723740693651,19.78,145.75,145.61,26.55788669]
[1723740693858,19.78,145.72,145.64,1.2643]
[1723740694050,19.78,145.72,145.65,8.62061194]
[1723740694245,19.78,145.72,145.66,8.62061194]
[1723740694450,19.78,145.72,145.64,1.2643]
[1723740694451,3.4312,145.7,145.67,8.62061194]
[1723740694655,3.4312,145.7,145.64,1.2643]
[1723740694855,3.4312,145.7,145.66,3.432]
[1723740695054,3.48065858,145.7,145.67,0.05133013]
[1723740695255,3.4315,145.69,145.67,0.05133013]
[1723740695458,0.04945858,145.7,145.67,0.05133013]
[1723740695658,3.48075858,145.7,145.67,0.05133013]
[1723740695858,0.04945858,145.7,145.67,0.05133013]
[1723740696265,0.04945858,145.7,145.67,3.48313013]
[1723740696558,0.04945858,145.7,145.67,0.05133013]
[1723740696752,3.4314,145.69,145.67,0.05133013]
[1723740697452,0.04945858,145.7,145.68,3.4315]
[1723740698455,0.04945858,145.7,145.67,0.05133013]
[1723740698957,0.04945858,145.7,145.68,3.4315]
[1723740699154,0.04945858,145.7,145.67,0.05133013]
[1723740699359,3.48065858,145.7,145.67,3.48303013]
[1723740699754,0.04945858,145.7,145.67,0.05133013]
[1723740699956,3.4316,145.68,145.67,0.05133013]
[1723740701556,0.04945858,145.7,145.67,0.05133013]
[1723740701952,3.4316,145.69,145.67,0.05133013]
[1723740702156,0.04945858,145.7,145.67,0.05133013]
[1723740702366,19.78,145.68,145.67,0.05133013]
[1723740702662,23.2116,145.68,145.67,0.05133013]
[1723740702852,3.4316,145.68,145.67,0.05133013]
[1723740706359,23.2116,145.68,145.67,0.05133013]
[1723740706956,3.4315,145.69,145.67,0.05133013]
[1723740707661,0.04945858,145.7,145.67,0.05133013]
[1723740707863,3.48085858,145.7,145.67,0.05133013]
[1723740708257,0.04945858,145.7,145.67,0.05133013]
[1723740708458,0.04945858,145.7,145.69,3.4314]
[1723740710263,4.98,145.79,145.68,21.0765]
[1723740710463,19.78,145.78,145.69,2.5437]
[1723740711562,0.04546074,145.75,145.73,3.4303]
[1723740713668,0.04546074,145.75,145.74,3.4302]
[1723740714761,3.4292,145.79,145.76,3.4296]
[1723740715865,3.4293,145.78,145.76,0.04945792]
[1723740717464,0.05017795,145.79,145.76,0.04945792]
[1723740718169,0.05017795,145.79,145.77,3.4294]
[1723740719172,19.83017795,145.79,145.76,0.04945792]
[1723740720271,3.4295,145.78,145.76,0.04945792]
[1723740720668,19.78,145.77,145.69,2.5437]
[1723740720874,0.05017795,145.79,145.69,2.5437]
[1723740720875,3.4306,145.73,145.69,2.5437]
[1723740721063,19.78,145.76,145.69,2.5437]
[1723740721772,19.78,145.74,145.69,2.5437]
[1723740721963,19.78,145.74,145.69,1.258]
[1723740722166,19.83023612,145.74,145.71,0.0469876]
[1723740722365,3.4305,145.73,145.71,0.0469876]
[1723740723272,3.4307,145.72,145.71,0.0469876]
[1723740724674,19.78,145.73,145.66,6.2784]
[1723740724874,3.4318,145.68,145.63,1.302]
[1723740725071,19.78,145.7,145.63,1.302]
[1723740725276,19.78,145.7,145.65,3.4322]
[1723740725475,19.78,145.7,145.63,1.302]
[1723740725675,24.74,145.72,145.66,3.432]
[1723740725874,0.04565657,145.68,145.66,3.432]
[1723740726984,0.04565657,145.68,145.65,3.47879671]
[1723740727276,0.04565657,145.68,145.65,0.04659671]
[1723740728070,0.04565657,145.68,145.66,3.432]
[1723740728274,0.04565657,145.68,145.65,0.04659671]
[1723740728470,0.04565657,145.68,145.66,3.4321]
[1723740728677,0.04565657,145.68,145.65,0.04659671]
[1723740728980,0.04565657,145.68,145.67,3.4319]
[1723740729686,0.04565657,145.68,145.66,3.432]
[1723740731088,0.04565657,145.68,145.67,3.4319]
[1723740734784,4.96,145.74,145.65,19.82659671]
[1723740734985,19.78,145.75,145.65,19.82659671]
[1723740735190,3.41480502,145.74,145.65,19.82659671]
[1723740735393,3.4307,145.72,145.69,3.4313]
[1723740735894,3.4307,145.72,145.7,3.4312]
[1723740736191,3.47658562,145.72,145.7,3.4312]
[1723740736588,3.47658562,145.72,145.69,3.47882]
[1723740736992,0.04588562,145.72,145.69,3.47882]
[1723740737786,0.04588562,145.72,145.7,3.4311]
[1723740737990,0.04588562,145.72,145.69,0.04752]
[1723740738394,0.04588562,145.72,145.7,3.4312]
[1723740738794,0.04588562,145.72,145.7,4.6884]
[1723740739099,0.04588562,145.72,145.71,3.4309]
[1723740740194,0.04588562,145.72,145.7,1.2572]
[1723740741496,0.04588562,145.72,145.7,4.6882]
[1723740742799,3.47668562,145.72,145.7,4.6882]
[1723740742999,0.04588562,145.72,145.7,4.6882]
[1723740744397,3.47668562,145.72,145.7,4.6882]
[1723740745194,3.4309,145.71,145.7,1.2572]
[1723740745404,0.04588562,145.72,145.69,0.04752]
[1723740745608,19.78,145.71,145.69,0.04752]
[1723740746105,3.4312,145.7,145.69,0.04752]
[1723740746406,0.04588562,145.72,145.69,0.04752]
[1723740747108,0.04588562,145.72,145.7,3.431]
[1723740747807,0.04588562,145.72,145.69,3.47882]
[1723740747996,0.04588562,145.72,145.69,0.04752]
[1723740749005,3.47658562,145.72,145.69,0.04752]
[1723740749304,19.82588562,145.72,145.69,0.04752]
[1723740749701,3.4312,145.7,145.69,0.04752]
[1723740749897,23.2112,145.7,145.69,0.04752]
[1723740750705,3.4311,145.71,145.69,0.04752]
[1723740751302,3.4312,145.7,145.69,0.04752]
[1723740753403,19.82588562,145.72,145.69,0.04752]
[1723740753404,0.04588562,145.72,145.69,0.04752]
[1723740754105,0.04588562,145.72,145.69,3.47872]
[1723740754612,0.04588562,145.72,145.7,3.4312]
[1723740754807,0.04588562,145.72,145.69,0.04752]
[1723740755006,0.04588562,145.72,145.69,3.47872]
[1723740755408,3.47668562,145.72,145.69,3.47872]
[1723740755610,0.04588562,145.72,145.69,0.04752]
[1723740756113,3.4309,145.71,145.69,0.04752]
[1723740756306,19.78,145.71,145.69,0.04752]
[1723740756603,3.4312,145.7,145.69,0.04752]
[1723740757609,19.78,145.71,145.66,8.62630874]
[1723740757801,19.78,145.68,145.59,4.9]
[1723740758005,19.78,145.68,145.61,8.62915753]
[1723740758301,19.78,145.68,145.59,4.9]
[1723740758302,3.432,145.67,145.63,3.4326]
[1723740758505,3.432,145.67,145.64,8.62915753]
[1723740758709,3.432,145.67,145.63,3.4326]
[1723740758907,3.432,145.67,145.64,8.62892465]
[1723740759209,0.04542405,145.67,145.64,0.04841605]
[1723740759710,3.4323,145.65,145.64,0.04841605]
[1723740759909,3.4323,145.65,145.64,8.67814886]
[1723740760610,3.4323,145.65,145.64,0.04841605]
[1723740768412,3.4322,145.66,145.64,0.04841605]
[1723740768615,0.04542405,145.67,145.64,0.04841605]
[1723740768814,0.04542405,145.67,145.65,3.4322]
[1723740769210,0.04542405,145.67,145.64,4.79461605]
[1723740771719,0.04542405,145.67,145.65,3.4323]
[1723740772114,0.04542405,145.67,145.64,4.83735302]
[1723740772314,24.68,145.73,145.67,3.4318]
[1723740772822,3.4313,145.7,145.64,1.3137]
[1723740773018,3.4313,145.7,145.66,3.432]
[1723740773218,24.68,145.74,145.67,8.62419424]
[1723740773419,0.04945468,145.69,145.68,8.62174768]
[1723740773728,23.29055684,145.75,145.68,8.62174768]
[1723740773921,19.78,145.75,145.69,8.62174768]
[1723740774121,0.04633896,145.7,145.67,1.36892759]
[1723740774318,0.04633896,145.7,145.68,8.62154267]
[1723740774527,19.78,145.71,145.64,2.5939]
[1723740774717,19.78,145.71,145.65,8.62567976]
[1723740774912,3.47904274,145.7,145.68,0.0501263]
[1723740775129,6.87737433,145.7,145.68,0.0501263]
[1723740775324,3.47894274,145.7,145.68,0.0501263]
[1723740775726,3.46347735,145.7,145.68,0.0501263]
[1723740776527,6.89477735,145.7,145.68,0.0501263]
[1723740777522,3.4314,145.69,145.68,0.0501263]
[1723740782330,3.47894274,145.7,145.68,0.0501263]
[1723740782830,3.4314,145.69,145.68,0.0501263]
[1723740783327,3.47894274,145.7,145.68,0.0501263]
[1723740783628,0.04764274,145.7,145.68,0.0501263]
[1723740785332,0.04764274,145.7,145.69,8.62352943]
[1723740785733,0.04764274,145.7,145.68,0.0501263]
[1723740785933,0.04764274,145.7,145.69,8.62352943]
[1723740786635,0.04764274,145.7,145.69,12.05492943]
[1723740787534,0.04764274,145.7,145.69,8.62352943]
[1723740788535,0.04764274,145.7,145.68,3.4816263]
[1723740788738,0.04764274,145.7,145.69,8.62274038]
[1723740790536,0.04764274,145.7,145.69,8.62308467]
[1723740791337,3.47884274,145.7,145.69,8.62308467]
[1723740791538,3.47884274,145.7,145.68,0.0501263]
[1723740791735,3.47884274,145.7,145.69,8.62527416]
[1723740791934,3.4314,145.69,145.68,0.0501263]
[1723740792134,0.04764274,145.7,145.68,8.67575995]
[1723740792341,0.04764274,145.7,145.68,0.0501263]
[1723740792733,3.4314,145.69,145.68,0.0501263]
[1723740792938,3.4314,145.69,145.68,8.67610543]
[1723740793139,3.4314,145.69,145.68,0.0501263]
[1723740794339,0.04764274,145.7,145.68,8.67660305]
[1723740794540,0.04764274,145.7,145.68,0.0501263]
[1723740794844,3.4314,145.69,145.68,0.0501263]
[1723740795138,0.04764274,145.7,145.68,8.67596516]
[1723740795347,3.47894274,145.7,145.68,0.0501263]
[1723740795745,0.04764274,145.7,145.68,0.0501263]
[1723740796448,3.4314,145.69,145.68,0.0501263]
[1723740796645,3.4314,145.69,145.68,8.67509412]
[1723740796848,3.47894274,145.7,145.68,8.67509412]
[1723740797149,3.47894274,145.7,145.68,0.0501263]
[1723740797337,3.4314,145.69,145.68,0.0501263]
[1723740797542,3.4314,145.69,145.68,8.67549482]
[1723740797946,3.47894274,145.7,145.68,8.67549482]
[1723740798144,3.47894274,145.7,145.68,0.0501263]
[1723740798554,0.04764274,145.7,145.68,0.0501263]
[1723740798743,0.04764274,145.7,145.69,8.62428212]
[1723740802243,3.47884274,145.7,145.69,8.62428212]
[1723740803346,3.47884274,145.7,145.69,8.62489773]
[1723740804651,0.04764274,145.7,145.69,8.62489773]
[1723740805045,3.47884274,145.7,145.69,8.62489773]
[1723740806254,3.47884274,145.7,145.68,0.0501263]
[1723740806451,3.47884274,145.7,145.69,8.62504526]
[1723740807148,0.04764274,145.7,145.69,8.62504526]
[1723740807746,0.04764274,145.7,145.69,12.05644526]
[1723740810053,0.04764274,145.7,145.69,12.05379735]
[1723740812755,3.4306,145.73,145.71,3.4309]
[1723740812956,3.4306,145.73,145.72,8.62163479]
[1723740813155,3.4306,145.73,145.7,1.2799]
[1723740813456,3.4306,145.73,145.71,8.62196845]
[1723740813651,3.4306,145.73,145.7,4.711]
[1723740813846,3.47692682,145.73,145.71,8.62193059]
[1723740814047,3.47692682,145.73,145.7,4.76018303]
[1723740814451,3.47692682,145.73,145.71,8.62175996]
[1723740814649,3.47692682,145.73,145.7,4.76018303]
[1723740814847,3.47692682,145.73,145.71,8.62180143]
[1723740815056,3.47692682,145.73,145.7,4.76018303]
[1723740815251,3.47692682,145.73,145.71,8.62190902]
[1723740815452,3.47692682,145.73,145.7,4.76018303]